bitfinex-derivatives/quotes_BTCF0:USTF0_20220103
["timestamp","ask_amount","ask_price","bid_price","bid_amount"]
[1641223783110,0.18,46959.0,46957.0,0.59536936]
[1641223783710,0.18,46959.0,46957.0,0.77436936]
[1641223783909,0.18,46959.0,46957.0,1.35158111]
[1641223784711,0.18,46959.0,46957.0,0.77436936]
[1641223784913,1.01905259,46959.0,46957.0,0.179]
[1641223785113,1.01905259,46959.0,46951.0,0.59536936]
[1641223785413,0.18,46956.0,46951.0,0.59536936]
[1641223785614,0.18,46956.0,46951.0,0.73536936]
[1641223785815,0.18,46956.0,46951.0,0.14]
[1641223786916,0.18,46953.0,46951.0,0.14]
[1641223787115,0.24949,46953.0,46950.0,0.59536936]
[1641223787717,0.43349,46953.0,46950.0,0.77336936]
[1641223788318,0.25349,46953.0,46950.0,0.178]
[1641223788518,0.18,46952.0,46950.0,0.178]
[1641223788719,0.14033567,46951.0,46950.0,0.178]
[1641223789122,0.14033567,46951.0,46946.0,0.59536936]
[1641223789323,0.14033567,46951.0,46945.0,0.59536936]
[1641223789721,0.51533567,46951.0,46945.0,0.59536936]
[1641223790321,0.33533567,46951.0,46945.0,0.59536936]
[1641223791021,0.32033567,46951.0,46945.0,0.59536936]
[1641223791721,0.51633567,46951.0,46945.0,0.59536936]
[1641223791923,0.33633567,46951.0,46945.0,0.59536936]
[1641223792522,0.18,46950.0,46942.0,0.62982294]
[1641223792722,0.83905259,46947.0,46942.0,2.05725472]
[1641223793121,0.83905259,46947.0,46943.0,0.01202901]
[1641223793623,1.00705259,46947.0,46943.0,0.19702901]
[1641223794224,1.00705259,46947.0,46944.0,0.01202901]
[1641223794825,1.00705259,46947.0,46944.0,0.64185195]
[1641223795025,0.83905259,46947.0,46944.0,0.64185195]
[1641223795624,0.83905259,46947.0,46945.0,0.62982294]
[1641223795825,1.00605259,46947.0,46945.0,0.62982294]
[1641223797727,1.00705259,46947.0,46945.0,0.81482294]
[1641223797927,1.18705259,46947.0,46945.0,0.81482294]
[1641223799028,1.01905259,46947.0,46945.0,0.62982294]
[1641223799329,2.13805259,46947.0,46945.0,0.62982294]
[1641223799631,2.26805259,46947.0,46945.0,0.77282294]
[1641223800229,0.31,46947.0,46946.0,0.62982294]
[1641223800931,1.50864656,46947.0,46946.0,0.62982294]
[1641223801130,1.37864656,46947.0,46946.0,0.62982294]
[1641223801729,1.56664656,46947.0,46946.0,0.68482294]
[1641223802133,0.368,46947.0,46946.0,0.68482294]
[1641223803131,0.18,46947.0,46946.0,0.62982294]
[1641223803732,0.367,46947.0,46946.0,0.68282294]
[1641223804132,0.367,46947.0,46946.0,0.053]
[1641223805033,0.367,46947.0,46940.0,0.62982294]
[1641223805232,0.189794,46949.0,46940.0,0.62982294]
[1641223805432,0.189794,46949.0,46946.0,0.62982294]
[1641223805831,0.379794,46949.0,46946.0,0.62982294]
[1641223806131,0.379794,46949.0,46947.0,0.62982294]
[1641223806332,0.19,46949.0,46947.0,0.62982294]
[1641223806531,0.37,46949.0,46947.0,0.62982294]
[1641223806732,0.19,46949.0,46947.0,0.62982294]
[1641223807035,0.18,46948.0,46947.0,0.62982294]
[1641223807234,0.18,46948.0,46940.0,1.42743178]
[1641223807432,0.24470852,46947.0,46940.0,1.42743178]
[1641223807632,0.31478852,46947.0,46941.0,0.01202939]
[1641223807833,0.13478852,46947.0,46941.0,0.01202939]
[1641223808134,0.07008,46947.0,46941.0,0.01202939]
[1641223808532,0.02130529,46946.0,46941.0,0.01202939]
[1641223809135,0.07008,46947.0,46946.0,1.20291831]
[1641223809737,0.25508,46947.0,46946.0,1.20291831]
[1641223810534,0.27638548,46947.0,46946.0,1.20291831]
[1641223810934,0.09138548,46947.0,46946.0,1.20291831]
[1641223811340,0.16940737,46947.0,46946.0,0.60149635]
[1641223811637,1.28840737,46947.0,46943.0,1.20291831]
[1641223811837,0.18,46944.0,46936.0,1.42743178]
[1641223812039,0.18,46938.0,46936.0,1.42743178]
[1641223812242,0.001,46937.0,46936.0,1.42743178]
[1641223812540,0.001,46937.0,46913.0,0.9446783]
[1641223812541,0.0769,46937.0,46913.0,0.9446783]
[1641223812741,0.18,46923.0,46913.0,0.9446783]
[1641223812941,0.08217,46923.0,46916.0,1.65648668]
[1641223813142,0.14033567,46921.0,46920.0,0.01203324]
[1641223813341,0.14133567,46921.0,46920.0,0.01203324]
[1641223813740,0.32433567,46921.0,46920.0,0.19303324]
[1641223814141,1.44333567,46921.0,46920.0,0.19303324]
[1641223814343,1.44333567,46921.0,46920.0,0.181]
[1641223814544,1.44333567,46921.0,46916.0,1.65648668]
[1641223814545,1.46465357,46921.0,46916.0,1.65648668]
[1641223814745,1.299,46917.0,46916.0,1.65648668]
[1641223814946,1.299,46917.0,46913.0,0.9446783]
[1641223815147,0.14033567,46914.0,46908.0,3.7602]
[1641223815344,0.14033567,46914.0,46900.0,0.0213179]
[1641223815548,0.14033567,46914.0,46904.0,0.18]
[1641223815753,0.32733567,46914.0,46904.0,0.18]
[1641223815952,0.32733567,46914.0,46905.0,0.0120364]
[1641223816154,0.32733567,46914.0,46907.0,0.18]
[1641223816352,0.32733567,46914.0,46905.0,0.0120364]
[1641223816353,0.32733567,46914.0,46913.0,0.18]
[1641223816551,0.14033567,46918.0,46913.0,0.14564]
[1641223816752,0.14033567,46918.0,46913.0,0.26564]
[1641223816952,0.14033567,46918.0,46917.0,0.18]
[1641223817153,0.14033567,46918.0,46914.0,0.0120364]
[1641223817754,0.14033567,46918.0,46914.0,0.2010364]
[1641223818355,0.14033567,46918.0,46915.0,0.0120364]
[1641223819456,0.14033567,46921.0,46917.0,0.18]
[1641223820254,0.14033567,46921.0,46918.0,0.0120364]
[1641223821156,0.14033567,46921.0,46916.0,0.0120364]
[1641223821356,0.14033567,46921.0,46913.0,0.18]
[1641223821755,0.31433567,46921.0,46917.0,0.01203484]
[1641223821954,0.31433567,46921.0,46916.0,0.187]
[1641223822357,0.31433567,46921.0,46917.0,0.01203484]
[1641223822955,0.31433567,46921.0,46916.0,0.187]
[1641223823155,0.14033567,46921.0,46915.0,0.18]
[1641223823357,0.14033567,46921.0,46911.0,0.0213132]
[1641223823560,0.18,46920.0,46909.0,0.14033567]
[1641223823760,0.18,46920.0,46915.0,0.179]
[1641223824162,0.31533567,46921.0,46915.0,0.179]
[1641223824560,0.09049061,46920.0,46915.0,0.179]
[1641223824963,0.31533567,46921.0,46915.0,0.179]
[1641223825162,0.14033567,46916.0,46907.0,0.20131479]
[1641223825362,0.14033567,46916.0,46908.0,0.009794]
[1641223825562,0.14033567,46921.0,46915.0,0.18]
[1641223825765,0.18,46917.0,46911.0,0.0120352]
[1641223826064,1.32031846,46917.0,46910.0,0.189]
[1641223826263,1.119,46912.0,46910.0,0.189]
[1641223826464,0.02132307,46911.0,46894.0,1.87172074]
[1641223826663,0.18,46904.0,46894.0,1.87172074]
[1641223826863,0.11614307,46911.0,46895.0,0.01203863]
[1641223826864,0.29614307,46911.0,46895.0,0.01203863]
[1641223827262,0.14033567,46899.0,46898.0,0.18]
[1641223827466,0.02131993,46914.0,46898.0,0.28116802]
[1641223827663,0.02131993,46914.0,46898.0,0.29320665]
[1641223827863,0.185,46899.0,46898.0,0.29320665]
[1641223828164,0.02131993,46914.0,46898.0,0.28116802]
[1641223828566,0.08157839,46913.0,46898.0,0.28116802]
[1641223828764,0.18,46912.0,46895.0,0.009794]
[1641223828967,0.18,46912.0,46892.0,1.9828]
[1641223828968,0.18,46902.0,46892.0,1.9828]
[1641223829166,0.14033567,46898.0,46891.0,0.02132196]
[1641223829366,0.14033567,46898.0,46891.0,0.08132196]
[1641223829568,0.14033567,46898.0,46891.0,0.02132196]
[1641223829767,0.14033567,46898.0,46891.0,0.21132196]
[1641223830170,0.14033567,46898.0,46896.0,0.59881454]
[1641223831568,0.07078393,46897.0,46896.0,0.59881454]
[1641223831767,0.07078393,46897.0,46896.0,0.78881454]
[1641223831967,0.14033567,46898.0,46896.0,0.78881454]
[1641223833169,0.14033567,46898.0,46896.0,0.59881454]
[1641223833369,0.14033567,46898.0,46897.0,0.81455967]
[1641223834169,0.14033567,46898.0,46897.0,0.59881454]
[1641223834769,0.14033567,46903.0,46897.0,0.59881454]
[1641223834970,0.14033567,46903.0,46899.0,0.18]
[1641223835772,0.14033567,46903.0,46899.0,0.368]
[1641223836176,0.14033567,46909.0,46900.0,0.009794]
[1641223836372,0.14033567,46909.0,46904.0,0.18]
[1641223836572,0.14033567,46909.0,46904.0,0.25082]
[1641223837173,0.14033567,46909.0,46906.0,0.18]
[1641223837372,0.14033567,46909.0,46905.0,0.02131562]
[1641223837572,0.82687021,46914.0,46906.0,0.18]
[1641223837775,0.82687021,46914.0,46906.0,0.192]
[1641223837974,0.82687021,46920.0,46907.0,0.59881454]
[1641223838873,0.82687021,46920.0,46907.0,0.81455967]
[1641223839273,0.82687021,46920.0,46907.0,0.95489534]
[1641223840475,0.82687021,46920.0,46907.0,0.73915021]
[1641223841173,0.14033567,46915.0,46907.0,0.73915021]
[1641223841775,0.14033567,46915.0,46907.0,0.26933567]
[1641223842275,0.09674286,46914.0,46907.0,0.26933567]
[1641223842675,0.14033567,46915.0,46907.0,0.26933567]
[1641223843277,0.14033567,46915.0,46907.0,0.14033567]
[1641223843776,0.14033567,46915.0,46907.0,0.28033567]
[1641223845180,0.14033567,46915.0,46910.0,0.18]
[1641223845579,0.14033567,46915.0,46907.0,0.28033567]
[1641223845779,0.14033567,46915.0,46910.0,0.113]
[1641223845979,0.14033567,46915.0,46910.0,0.293]
[1641223846580,0.14033567,46915.0,46910.0,0.113]
[1641223847382,0.14033567,46915.0,46908.0,0.59881454]
[1641223847782,0.14033567,46915.0,46908.0,0.72281454]
[1641223847984,0.14033567,46915.0,46910.0,0.18]
[1641223848181,0.14033567,46915.0,46908.0,1.09634558]
[1641223849185,0.14033567,46915.0,46908.0,0.72281454]
[1641223849383,0.14033567,46915.0,46908.0,0.59881454]
[1641223849885,0.14033567,46915.0,46908.0,0.70381454]
[1641223850695,0.14033567,46915.0,46908.0,0.105]
[1641223851290,0.14033567,46915.0,46907.0,0.73915021]
[1641223851888,0.14033567,46915.0,46907.0,0.84415021]
[1641223852088,0.14033567,46915.0,46909.0,0.18]
[1641223853897,0.14033567,46915.0,46909.0,0.279]
[1641223854099,0.14033567,46915.0,46909.0,0.87781454]
[1641223855097,0.14033567,46915.0,46912.0,0.59881454]
[1641223855897,0.14033567,46915.0,46912.0,0.69881454]
[1641223856098,0.14033567,46915.0,46912.0,0.1]
[1641223856698,0.0213203,46913.0,46912.0,0.1]
[1641223857406,0.23859312,46915.0,46912.0,0.1]
[1641223857607,0.14033567,46915.0,46912.0,0.1]
[1641223858006,0.194,46913.0,46912.0,0.1]
[1641223859211,0.14033567,46915.0,46909.0,0.77881454]
[1641223859409,0.14033567,46915.0,46910.0,0.18]
[1641223859611,0.14033567,46915.0,46910.0,0.77881454]
[1641223859811,0.14033567,46915.0,46910.0,0.59881454]
[1641223860010,0.28133567,46915.0,46910.0,0.92381454]
[1641223860210,0.28133567,46915.0,46910.0,0.74381454]
[1641223860513,0.28133567,46915.0,46911.0,0.01203808]
[1641223860713,0.28133567,46915.0,46911.0,0.61085262]
[1641223861113,0.28133567,46915.0,46911.0,0.59881454]
[1641223861911,0.33533567,46915.0,46911.0,0.59881454]
[1641223862512,0.33533567,46915.0,46909.0,0.59881454]
[1641223863315,0.14033567,46915.0,46909.0,0.59881454]
[1641223863513,0.14033567,46915.0,46908.0,0.59881454]
[1641223863913,0.26333567,46915.0,46910.0,0.01203825]
[1641223864313,0.26333567,46915.0,46909.0,0.13]
[1641223864713,0.26333567,46915.0,46910.0,0.01203811]
[1641223865113,0.26333567,46915.0,46909.0,0.13]
[1641223865313,0.26333567,46915.0,46910.0,0.59881454]
[1641223865314,0.14033567,46915.0,46910.0,0.59881454]
[1641223865514,0.20131961,46914.0,46910.0,0.59881454]
[1641223865714,0.09016,46914.0,46910.0,0.59881454]
[1641223865917,0.09016,46914.0,46910.0,0.66381454]
[1641223866114,0.09016,46914.0,46910.0,0.97397324]
[1641223866315,0.91703021,46914.0,46910.0,1.81232118]
[1641223866516,0.91703021,46914.0,46911.0,0.59881454]
[1641223867516,0.82687021,46912.0,46910.0,0.59881454]
[1641223868317,1.02387021,46914.0,46910.0,0.83834794]
[1641223869019,0.197,46914.0,46912.0,0.60154026]
[1641223869219,0.96720588,46915.0,46912.0,0.60154026]
[1641223870021,1.16320588,46915.0,46913.0,0.60154026]
[1641223871324,0.96720588,46915.0,46913.0,0.60154026]
[1641223871623,0.82687021,46914.0,46911.0,0.60154026]
[1641223872623,0.82687021,46914.0,46913.0,0.60154026]
[1641223874022,1.02287021,46914.0,46913.0,0.60154026]
[1641223875225,1.02287021,46914.0,46911.0,0.83834794]
[1641223875425,0.96720588,46915.0,46913.0,0.83834794]
[1641223875926,1.16320588,46915.0,46913.0,0.83834794]
[1641223876324,1.16320588,46915.0,46912.0,1.14326264]
[1641223877326,1.16320588,46915.0,46911.0,0.83834794]
[1641223877327,0.82687021,46913.0,46911.0,0.83834794]
[1641223877926,1.00087021,46913.0,46911.0,0.94534794]
[1641223878632,1.00087021,46913.0,46912.0,0.3049147]
[1641223879230,0.82687021,46913.0,46912.0,0.3049147]
[1641223880031,1.00287021,46913.0,46912.0,0.4819147]
[1641223880233,0.176,46913.0,46912.0,1.32026264]
[1641223881139,1.00287021,46913.0,46912.0,0.4819147]
[1641223881333,0.82687021,46913.0,46912.0,0.3049147]
[1641223881931,0.98087021,46913.0,46912.0,0.4609147]
[1641223882733,0.154,46913.0,46912.0,0.156]
[1641223883933,1.26694712,46914.0,46912.0,0.157]
[1641223884135,0.154,46913.0,46912.0,0.157]
[1641223885737,0.154,46913.0,46912.0,0.44642118]
[1641223886035,0.154,46913.0,46912.0,0.44542118]
[1641223886637,0.154,46913.0,46912.0,1.28376912]
[1641223887338,0.8263907,46914.0,46912.0,1.12776912]
[1641223887938,0.9333907,46914.0,46912.0,1.23676912]
[1641223888842,0.9333907,46914.0,46913.0,0.28942118]
[1641223889340,0.8263907,46914.0,46913.0,0.28942118]
[1641223889741,0.8263907,46914.0,46912.0,0.83834794]
[1641223889939,1.0003907,46914.0,46913.0,0.08]
[1641223891344,0.8263907,46914.0,46912.0,0.83834794]
[1641223891943,0.9663907,46914.0,46913.0,0.83834794]
[1641223892742,0.9663907,46914.0,46913.0,1.12776912]
[1641223893444,1.39040589,46914.0,46911.0,1.19807112]
[1641223893643,0.001,46912.0,46904.0,1.43768535]
[1641223893845,1.299,46906.0,46904.0,1.43768535]
[1641223894043,0.14033567,46905.0,46904.0,1.43768535]
[1641223894244,1.25933567,46905.0,46904.0,1.43768535]
[1641223894445,0.14133567,46905.0,46904.0,1.43768535]
[1641223895242,0.14133567,46905.0,46898.0,3.30718535]
[1641223895443,0.14033567,46905.0,46898.0,1.43768535]
[1641223895843,1.25933567,46905.0,46898.0,1.43768535]
[1641223896044,1.44833567,46905.0,46900.0,0.01204241]
[1641223896446,0.001,46901.0,46900.0,0.01204241]
[1641223896745,0.001,46901.0,46899.0,0.079]
[1641223896746,0.27551,46901.0,46899.0,0.079]
[1641223896943,1.121,46900.0,46892.0,1.43768535]
[1641223897148,0.18,46893.0,46892.0,1.43768535]
[1641223897742,1.119,46897.0,46887.0,1.43768535]
[1641223897743,1.299,46897.0,46887.0,1.43768535]
[1641223897943,0.18,46891.0,46887.0,1.43768535]
[1641223898147,0.14033567,46888.0,46887.0,1.43768535]
[1641223899146,0.14033567,46888.0,46881.0,1.43768535]
[1641223900045,0.32933567,46888.0,46881.0,1.43768535]
[1641223900446,0.32933567,46888.0,46883.0,0.18]
[1641223900647,0.32933567,46888.0,46883.0,1.61768535]
[1641223901250,0.14033567,46888.0,46883.0,1.61768535]
[1641223901456,0.14033567,46888.0,46883.0,1.43768535]
[1641223901951,0.14033567,46888.0,46885.0,1.43768535]
[1641223902150,0.32133567,46888.0,46885.0,1.43768535]
[1641223903351,0.14033567,46888.0,46885.0,1.43768535]
[1641223903953,0.14033567,46888.0,46886.0,1.43768535]
[1641223904151,0.31833567,46888.0,46886.0,1.43768535]
[1641223904953,0.31833567,46888.0,46884.0,1.43768535]
[1641223905355,0.14033567,46888.0,46884.0,1.43768535]
[1641223905668,0.14033567,46888.0,46885.0,0.18]
[1641223906069,0.189,46888.0,46886.0,0.03111844]
[1641223906270,0.189,46888.0,46887.0,0.14033567]
[1641223906472,1.18069615,46895.0,46887.0,0.34165857]
[1641223906670,0.14033567,46905.0,46887.0,0.16165857]
[1641223906671,0.82545174,46894.0,46887.0,0.16165857]
[1641223906870,0.82545174,46894.0,46893.0,0.18]
[1641223907071,0.82545174,46894.0,46893.0,0.25408]
[1641223907271,0.82545174,46894.0,46893.0,0.07408]
[1641223907474,0.82545174,46894.0,46893.0,0.27540149]
[1641223907769,0.86400119,46904.0,46893.0,0.27540149]
[1641223907970,0.14033567,46905.0,46893.0,0.09540149]
[1641223908170,0.14033567,46905.0,46894.0,0.14033567]
[1641223909273,1.25933567,46905.0,46894.0,0.28791297]
[1641223909872,0.20132487,46903.0,46894.0,0.28791297]
[1641223910072,0.27385487,46903.0,46894.0,0.47891297]
[1641223910275,1.39285487,46903.0,46895.0,0.1475773]
[1641223911174,1.39285487,46903.0,46899.0,0.60193937]
[1641223911473,0.18,46900.0,46899.0,0.60193937]
[1641223912172,0.18,46900.0,46899.0,0.79393937]
[1641223913373,0.18,46900.0,46899.0,0.60193937]
[1641223913975,0.18,46900.0,46898.0,0.60193937]
[1641223914173,0.18,46900.0,46899.0,0.192]
[1641223914376,1.39285487,46903.0,46899.0,0.192]
[1641223914575,0.18,46900.0,46899.0,0.192]
[1641223915373,0.18,46900.0,46898.0,0.60193937]
[1641223915775,1.3620254,46900.0,46899.0,0.82871461]
[1641223916274,1.50236107,46900.0,46899.0,0.82871461]
[1641223916577,1.50236107,46900.0,46899.0,0.60193937]
[1641223916776,1.43933567,46900.0,46898.0,0.192]
[1641223917480,1.43933567,46900.0,46891.0,0.009794]
[1641223918079,1.43933567,46900.0,46891.0,0.201794]
[1641223918281,1.43933567,46900.0,46892.0,0.0120438]
[1641223919683,0.001,46895.0,46892.0,0.0120438]
[1641223919882,0.001,46893.0,46892.0,0.0120438]
[1641223920085,0.001,46893.0,46892.0,0.2040438]
[1641223920282,0.06621,46893.0,46892.0,0.2040438]
[1641223920682,0.06621,46893.0,46892.0,0.192]
[1641223921385,0.06621,46893.0,46887.0,0.14033567]
[1641223921581,0.06521,46893.0,46887.0,0.14033567]
[1641223921782,0.06521,46893.0,46888.0,0.01204395]
[1641223923885,0.18,46889.0,46888.0,0.01204395]
[1641223924083,0.18,46889.0,46888.0,0.191]
[1641223924284,0.14033567,46889.0,46888.0,0.191]
[1641223924684,0.32033567,46889.0,46888.0,0.191]
[1641223924884,0.14033567,46889.0,46888.0,0.191]
[1641223926190,0.14033567,46889.0,46888.0,0.187]
[1641223927390,0.14033567,46889.0,46882.0,2.03693567]
[1641223927589,0.14033567,46889.0,46882.0,0.14033567]
[1641223927789,0.14033567,46889.0,46883.0,0.01204579]
[1641223930192,0.14033567,46889.0,46883.0,0.20504579]
[1641223930693,0.14033567,46889.0,46884.0,0.01204579]
[1641223931997,0.14033567,46889.0,46883.0,0.01204579]
[1641223932192,0.14033567,46889.0,46884.0,0.193]
[1641223932393,0.14033567,46889.0,46885.0,0.01204579]
[1641223933895,0.14033567,46889.0,46883.0,0.01204579]
[1641223934095,0.14033567,46889.0,46885.0,0.192]
[1641223935596,0.14033567,46889.0,46882.0,0.14033567]
[1641223936096,0.14033567,46889.0,46883.0,0.01204495]
[1641223937900,0.14033567,46889.0,46884.0,0.76546032]
[1641223938301,0.14033567,46889.0,46885.0,0.01204495]
[1641223939501,0.14033567,46889.0,46884.0,0.01204495]
[1641223939703,0.14033567,46889.0,46886.0,0.01204495]
[1641223939903,0.14033567,46889.0,46885.0,0.01204495]
[1641223940102,0.14033567,46889.0,46884.0,0.192]
[1641223940303,0.14033567,46889.0,46886.0,0.01204479]
[1641223940507,0.14033567,46889.0,46885.0,0.01204479]
[1641223942107,0.14033567,46889.0,46885.0,0.20104479]
[1641223942505,0.14033567,46889.0,46886.0,0.01204479]
[1641223943204,0.14033567,46889.0,46885.0,0.189]
[1641223943605,0.14033567,46889.0,46884.0,0.60193937]
[1641223944006,0.14033567,46889.0,46885.0,0.01204525]
[1641223945910,0.14033567,46889.0,46884.0,0.01204525]
[1641223946208,0.14033567,46889.0,46886.0,0.01204525]
[1641223946408,0.14033567,46889.0,46885.0,0.80298462]
[1641223946610,0.14033567,46889.0,46887.0,0.01204525]
[1641223946808,0.14033567,46889.0,46886.0,0.01204525]
[1641223947208,0.14033567,46889.0,46885.0,0.95445613]
[1641223947409,0.14033567,46889.0,46887.0,0.01204482]
[1641223947609,0.14033567,46889.0,46886.0,0.01204482]
[1641223948010,0.14033567,46889.0,46885.0,0.60193937]
[1641223948214,0.14033567,46889.0,46887.0,0.01204471]
[1641223948416,0.14033567,46889.0,46886.0,0.20104471]
[1641223948816,0.14033567,46889.0,46887.0,0.01204471]
[1641223949919,0.14033567,46889.0,46886.0,0.01204471]
[1641223950116,0.14033567,46889.0,46887.0,0.189]
[1641223951623,0.14033567,46889.0,46885.0,0.60193937]
[1641223952220,0.14033567,46889.0,46885.0,0.79093937]
[1641223952423,0.14033567,46889.0,46886.0,0.0120446]
[1641223952819,0.14033567,46889.0,46886.0,0.75818452]
[1641223953220,0.14033567,46889.0,46886.0,0.61398397]
[1641223953623,0.14033567,46889.0,46887.0,0.0120446]
[1641223954322,0.14033567,46889.0,46887.0,0.2010446]
[1641223954935,0.14033567,46889.0,46887.0,0.189]
[1641223955535,0.14033567,46889.0,46885.0,0.60193937]
[1641223955733,0.22753567,46889.0,46885.0,0.60193937]
[1641223956133,0.22753567,46889.0,46886.0,0.01204499]
[1641223957836,0.22753567,46889.0,46885.0,0.01204499]
[1641223958137,0.22753567,46889.0,46887.0,0.01204499]
[1641223958339,0.22753567,46889.0,46886.0,0.80698436]
[1641223958743,0.91459975,46893.0,46887.0,0.01204499]
[1641223958744,0.82612567,46893.0,46887.0,0.01204499]
[1641223958937,0.02132369,46905.0,46891.0,0.18]
[1641223959137,0.14033567,46905.0,46894.0,0.14033567]
[1641223959539,1.18921442,46897.0,46894.0,0.32033567]
[1641223959738,0.02132263,46908.0,46894.0,0.32033567]
[1641223960138,0.02132263,46908.0,46896.0,0.18]
[1641223960339,0.02132263,46908.0,46895.0,0.33817474]
[1641223960542,0.02132263,46908.0,46895.0,0.92807175]
[1641223960738,0.02132263,46908.0,46896.0,0.18]
[1641223961040,0.02132263,46908.0,46896.0,0.19204232]
[1641223961240,0.02132263,46908.0,46907.0,0.14033567]
[1641223961438,0.02232263,46908.0,46907.0,0.14033567]
[1641223962239,0.21332263,46908.0,46907.0,0.14033567]
[1641223962443,0.192,46908.0,46907.0,0.14033567]
[1641223963741,0.06391452,46908.0,46907.0,0.14033567]
[1641223964140,0.26091452,46908.0,46907.0,0.14033567]
[1641223964945,0.26091452,46908.0,46907.0,0.20714567]
[1641223965543,0.06391452,46908.0,46907.0,0.20714567]
[1641223965744,0.02132114,46911.0,46907.0,0.20714567]
[1641223966145,0.7689473,46915.0,46907.0,0.39314567]
[1641223966444,0.7689473,46915.0,46908.0,0.009794]
[1641223967246,0.02131604,46922.0,46914.0,0.14033567]
[1641223968245,0.02131604,46922.0,46914.0,0.32933567]
[1641223969546,0.02131604,46922.0,46914.0,0.14033567]
[1641223970246,0.02131604,46922.0,46914.0,0.32733567]
[1641223971348,0.02131604,46922.0,46914.0,0.33712967]
[1641223971748,0.02131604,46922.0,46914.0,0.15012967]
[1641223972148,0.02131604,46922.0,46914.0,0.34012967]
[1641223972551,0.02131604,46922.0,46914.0,0.94206904]
[1641223973248,0.02131604,46922.0,46920.0,0.14033567]
[1641223973448,0.001,46921.0,46920.0,0.14033567]
[1641223974247,0.001,46921.0,46920.0,0.32733567]
[1641223975547,0.001,46921.0,46920.0,0.14033567]
[1641223976349,0.001,46921.0,46920.0,0.32733567]
[1641223978253,0.001,46921.0,46920.0,0.32833567]
[1641223979552,0.001,46921.0,46920.0,0.14033567]
[1641223980359,0.001,46921.0,46920.0,0.32733567]
[1641223982155,0.001,46921.0,46920.0,0.14033567]
[1641223982356,0.001,46921.0,46920.0,0.32733567]
[1641223983558,0.001,46921.0,46920.0,0.14033567]
[1641223983759,0.181,46921.0,46916.0,0.60193937]
[1641223983956,1.3,46917.0,46916.0,0.60193937]
[1641223984156,1.3223192,46917.0,46916.0,0.60193937]
[1641223984358,1.3223192,46917.0,46914.0,0.74227504]
[1641223984359,0.2033192,46917.0,46914.0,0.74227504]
[1641223984557,0.001,46915.0,46914.0,0.74227504]
[1641223985459,0.001,46915.0,46914.0,0.60193937]
[1641223985758,0.001,46915.0,46911.0,1.20371365]
[1641223985957,0.001,46912.0,46910.0,0.60193937]
[1641223986157,0.001,46911.0,46910.0,0.60193937]
[1641223987259,0.08732226,46911.0,46910.0,0.60193937]
[1641223988361,0.08732226,46911.0,46910.0,0.75293937]
[1641223988561,1.40864354,46911.0,46910.0,0.151]
[1641223989561,0.28964513,46911.0,46906.0,0.60193937]
[1641223989761,0.001,46907.0,46906.0,0.60193937]
[1641223990361,0.199,46907.0,46906.0,0.60193937]
[1641223990763,0.199,46907.0,46904.0,0.74227504]
[1641223990964,0.198,46907.0,46904.0,0.74227504]
[1641223991162,0.378,46907.0,46904.0,0.74227504]
[1641223991364,0.09029653,46906.0,46904.0,0.74227504]
[1641223991966,0.09029653,46906.0,46905.0,0.37459519]
[1641223992265,0.28129653,46906.0,46905.0,0.97653456]
[1641223992665,0.28129653,46906.0,46905.0,0.60193937]
[1641223992866,0.28129653,46906.0,46904.0,0.14033567]
[1641223993068,0.2137,46905.0,46904.0,0.14033567]
[1641223993267,1.14032426,46905.0,46903.0,0.60193937]
[1641223993465,1.43933567,46904.0,46903.0,0.40473937]
[1641223993665,1.44033567,46904.0,46900.0,1.20371365]
[1641223993865,0.181,46901.0,46899.0,1.20371365]
[1641223994065,1.35715,46901.0,46899.0,1.20371365]
[1641223994267,1.17715,46901.0,46899.0,1.20371365]
[1641223994467,0.001,46900.0,46899.0,1.20371365]
[1641223994869,0.001,46900.0,46893.0,0.3165393]
[1641223995068,1.17715,46901.0,46893.0,0.3165393]
[1641223995268,0.18,46899.0,46893.0,0.3165393]
[1641223995467,0.18,46898.0,46893.0,0.3165393]
[1641223995670,0.20232929,46894.0,46893.0,0.3165393]
[1641223995868,0.20132929,46894.0,46893.0,0.3165393]
[1641223996167,0.20232929,46894.0,46893.0,0.3165393]
[1641223996369,1.50532929,46894.0,46891.0,1.20371365]
[1641223996567,1.535033,46892.0,46884.0,1.43768535]
[1641223996767,1.299,46886.0,46884.0,1.43768535]
[1641223996968,0.002,46885.0,46884.0,1.43768535]
[1641223997169,0.09363445,46885.0,46884.0,1.43768535]
[1641223997569,0.09263445,46885.0,46877.0,1.43768535]
[1641223997769,0.001,46884.0,46877.0,1.43768535]
[1641223997968,0.02233561,46884.0,46877.0,1.43768535]
[1641223998170,0.18,46881.0,46877.0,1.43768535]
[1641223998567,1.299,46881.0,46877.0,1.43768535]
[1641223998871,1.299,46881.0,46874.0,0.14033567]
[1641223999269,0.07356951,46880.0,46874.0,0.14033567]
[1641223999469,0.20333561,46884.0,46874.0,0.14033567]
[1641223999669,0.02133561,46884.0,46875.0,0.01204776]
[1641224001369,0.08391625,46883.0,46875.0,0.01204776]
[1641224003072,0.08391625,46883.0,46879.0,0.84191848]
[1641224004276,0.26491625,46883.0,46879.0,0.84191848]
[1641224004680,0.26491625,46883.0,46880.0,0.60236644]
[1641224004881,0.002,46881.0,46880.0,0.60236644]
[1641224005983,0.001,46881.0,46880.0,0.60236644]
[1641224006181,0.002,46881.0,46880.0,0.60236644]
[1641224006481,0.168,46881.0,46880.0,0.60236644]
[1641224007684,0.02133561,46884.0,46880.0,0.60236644]
[1641224007883,0.7689473,46893.0,46882.0,0.18]
[1641224008589,0.0874745,46892.0,46882.0,0.18]
[1641224008786,0.0874745,46892.0,46880.0,0.92831248]
[1641224009185,0.0874745,46892.0,46882.0,0.18]
[1641224009587,0.0874745,46892.0,46891.0,0.14033567]
[1641224010489,0.2614745,46892.0,46891.0,0.14033567]
[1641224010696,0.2624745,46892.0,46891.0,0.14033567]
[1641224011097,0.2614745,46892.0,46885.0,0.60228202]
[1641224011294,0.02133106,46889.0,46885.0,0.60228202]
[1641224011696,0.07785493,46888.0,46885.0,0.60228202]
[1641224011897,0.11154976,46892.0,46885.0,0.60228202]
[1641224012398,0.09022,46892.0,46885.0,0.60228202]
[1641224012598,0.02133154,46888.0,46885.0,0.60228202]
[1641224013000,0.02133154,46888.0,46885.0,0.78649936]
[1641224013398,0.001,46886.0,46885.0,0.78649936]
[1641224013601,0.02133154,46888.0,46885.0,0.78649936]
[1641224013799,0.001,46886.0,46884.0,0.14033567]